fUST/lending_fUST_20241112
["ID","MTS","AMOUNT","RATE_DAILY","PERIOD"]
[342038007,1731377474060,-1028.27,0.00023013,2]
[342038008,1731377474069,-500.0,0.00023013,2]
[342038009,1731377474078,-224.23965587,0.00023013,2]
[342038010,1731377474087,-15293.97,0.00023013,2]
[342038011,1731377474096,-523.71298565,0.00023013,2]
[342038012,1731377474106,-500.0,0.00023013,2]
[342038013,1731377474115,-500.0,0.00023013,2]
[342038014,1731377474124,-500.0,0.00023013,2]
[342038015,1731377474134,-578.46785895,0.00023013,2]
[342038016,1731377474143,-516.87966864,0.00023013,2]
[342038017,1731377474153,-500.0,0.00023013,2]
[342038018,1731377474162,-642.88417161,0.00023013,2]
[342038019,1731377474171,-500.0,0.00023013,2]
[342038020,1731377474180,-500.0,0.00023013,2]
[342038021,1731377474189,-500.0,0.00023013,2]
[342038022,1731377474198,-10812.06,0.00023013,2]
[342038023,1731377474207,-500.0,0.00023013,2]
[342038024,1731377474217,-500.0,0.00023013,2]
[342038025,1731377474227,-500.0,0.00023013,2]
[342038026,1731377474236,-259.69897998,0.00023013,2]
[342038027,1731377474246,-500.0,0.00023013,2]
[342038028,1731377474255,-500.0,0.00023013,2]
[342038029,1731377474265,-500.0,0.00023013,2]
[342038030,1731377474274,-508.32307074,0.00023013,2]
[342038031,1731377474284,-500.0,0.00023013,2]
[342038032,1731377474293,-909.56,0.00023013,2]
[342038033,1731377474302,-500.0,0.00023013,2]
[342038034,1731377474313,-2453.18,0.00023013,2]
[342038035,1731377474322,-616.45,0.00023013,2]
[342038036,1731377474331,-500.0,0.00023013,2]
[342038037,1731377474341,-500.0,0.00023013,2]
[342038038,1731377474350,-5895.01,0.00023013,2]
[342038039,1731377474360,-505.57,0.00023013,2]
[342038040,1731377474372,-7159.21,0.00023013,2]
[342038041,1731377474382,-500.0,0.00023013,2]
[342038042,1731377474391,-1860.51,0.00023013,2]
[342038043,1731377474400,-500.0,0.00023013,2]
[342038044,1731377474410,-500.0,0.00023013,2]
[342038045,1731377474420,-524.46746966,0.00023013,2]
[342038046,1731377474429,-698.56,0.00023013,2]
[342038047,1731377474440,-500.0,0.00023013,2]
[342038048,1731377474449,-500.0,0.00023013,2]
[342038049,1731377474459,-742.56,0.00023013,2]
[342038050,1731377474468,-434.64039059,0.00023013,2]
[342038051,1731377474478,-500.0,0.00023013,2]
[342038052,1731377474488,-500.0,0.00023013,2]
[342038053,1731377474497,-225.87738049,0.00023013,2]
[342038054,1731377474506,-500.0,0.00023013,2]
[342038055,1731377474515,-500.0,0.00023013,2]
[342038056,1731377474524,-517.63272025,0.00023013,2]
[342038057,1731377474534,-500.0,0.00023013,2]
[342038058,1731377474544,-540.6,0.00023013,2]
[342038059,1731377474554,-500.0,0.00023013,2]
[342038060,1731377474563,-500.0,0.00023013,2]
[342038061,1731377474572,-500.0,0.00023013,2]
[342038062,1731377474582,-1171.19,0.00023013,2]
[342038063,1731377474591,-500.0,0.00023013,2]
[342038064,1731377474601,-1721.31,0.00023013,2]
[342038065,1731377474611,-500.0,0.00023013,2]
[342038066,1731377474620,-500.0,0.00023013,2]
[342038067,1731377474629,-500.0,0.00023013,2]
[342038068,1731377474639,-500.0,0.00023013,2]
[342038069,1731377474648,-1319.56,0.00023013,2]
[342038070,1731377474657,-500.0,0.00023013,2]
[342038071,1731377474667,-629.72,0.00023013,2]
[342038072,1731377474766,-159.0,0.00023014,2]
[342038073,1731377474776,-530.0,0.00023014,2]
[342038074,1731377474786,-227.0,0.00023014,2]
[342038075,1731377474796,-160.0,0.00023025,16]
[342038076,1731377474807,-1000.0,0.00023042,2]
[342038077,1731377474816,-245.362841,0.00023042,2]
[342038078,1731377474826,-1000.0,0.00023042,2]
[342038079,1731377474835,-504.61202971,0.00023042,2]
[342038080,1731377474845,-1000.0,0.00023042,2]
[342038081,1731377474855,-1002.64882529,0.00023042,2]
[342038082,1731377474864,-699.62686539,0.00023042,2]
[342038083,1731377474874,-1000.0,0.00023042,2]
[342038084,1731377474883,-1000.0,0.00023042,2]
[342038085,1731377474892,-1000.0,0.00023042,2]
[342038086,1731377474902,-417.53027063,0.00023042,2]
[342038087,1731377474911,-161.70950878,0.00023042,2]
[342038088,1731377474921,-1000.0,0.00023042,2]
[342038089,1731377474930,-1000.0,0.00023042,2]
[342038090,1731377474940,-1000.0,0.00023042,2]
[342038091,1731377474950,-951.82808613,0.00023042,2]
[342038092,1731377474959,-1064.50305121,0.00023042,2]
[342038093,1731377474969,-502.79346261,0.00023042,2]
[342038094,1731377474978,-427.52115918,0.00023042,2]
[342038095,1731377474988,-1000.0,0.00023042,2]
[342038096,1731377474998,-1000.0,0.00023042,2]
[342038097,1731377475008,-1001.02361166,0.00023042,2]
[342038098,1731377475018,-262.38503296,0.00023042,2]
[342038099,1731377475027,-506.19413605,0.00023042,2]
[342038100,1731377475037,-236.95009608,0.00023042,2]
[342038101,1731377475047,-1000.0,0.00023042,2]
[342038102,1731377475060,-160.0,0.0002312,17]
[342038103,1731377475069,-420.0,0.00023187,2]
[342038104,1731377475079,-160.0,0.00023215,18]
[342038105,1731377475088,-500.0,0.00023287,2]
[342038106,1731377475098,-500.0,0.00023287,2]
[342038107,1731377475108,-250.98506614,0.00023287,2]
[342038108,1731377475117,-500.0,0.00023287,2]
[342038109,1731377475127,-500.0,0.00023287,2]
[342038110,1731377475136,-500.0,0.00023287,2]
[342038111,1731377475146,-500.0,0.00023287,2]
[342038112,1731377475156,-167.12033666,0.00023287,2]
[342038113,1731377475165,-666.67,0.00023287,2]
[342038114,1731377475174,-504.93897975,0.00023287,2]
[342038115,1731377475184,-1000.0,0.00023287,2]
[342038116,1731377475193,-500.0,0.00023287,2]
[342038117,1731377475202,-500.0,0.00023287,2]
[342038118,1731377475212,-419.39011133,0.00023287,2]
[342038119,1731377475221,-500.0,0.00023287,2]
[342038120,1731377475230,-500.0,0.00023287,2]
[342038121,1731377475240,-516.91700438,0.00023287,2]
[342038122,1731377475249,-323.18367887,0.00023287,2]
[342038123,1731377475259,-500.0,0.00023287,2]
[342038124,1731377475268,-500.0,0.00023287,2]
[342038125,1731377475277,-500.0,0.00023287,2]
[342038126,1731377475286,-500.0,0.00023287,2]
[342038127,1731377475296,-285.23139031,0.00023287,2]
[342038128,1731377475307,-500.0,0.00023287,2]
[342038129,1731377475316,-555.24,0.00023287,2]
[342038130,1731377475326,-500.0,0.00023287,2]
[342038131,1731377475335,-500.0,0.00023287,2]
[342038132,1731377475344,-500.0,0.00023287,2]
[342038133,1731377475354,-570.61926897,0.00023287,2]
[342038134,1731377475366,-507.55906354,0.00023287,2]
[342038135,1731377475375,-500.0,0.00023287,2]
[342038136,1731377475385,-500.0,0.00023287,2]
[342038137,1731377475394,-500.0,0.00023287,2]
[342038138,1731377475404,-500.0,0.00023287,2]
[342038139,1731377475414,-608.85,0.00023287,2]
[342038140,1731377475423,-503.72843246,0.00023287,2]
[342038141,1731377475432,-521.49448887,0.00023287,2]
[342038142,1731377475444,-618.46,0.00023287,2]
[342038143,1731377475454,-500.0,0.00023287,2]
[342038144,1731377475463,-1002.33,0.00023287,2]
[342038145,1731377475473,-500.0,0.00023287,2]
[342038146,1731377475482,-708.62,0.00023287,2]
[342038147,1731377475491,-500.0,0.00023287,2]
[342038148,1731377475500,-573.6345631,0.00023287,2]
[342038149,1731377475510,-500.0,0.00023287,2]
[342038150,1731377475520,-500.0,0.00023287,2]
[342038151,1731377475530,-500.0,0.00023287,2]
[342038152,1731377475540,-500.0,0.00023287,2]
[342038153,1731377475550,-500.0,0.00023287,2]
[342038154,1731377475562,-500.0,0.00023287,2]
[342038155,1731377475572,-570.63196335,0.00023287,2]
[342038156,1731377475581,-500.0,0.00023287,2]
[342038157,1731377475591,-150.49262231,0.00023287,2]
[342038158,1731377475600,-753.43,0.00023287,2]
[342038159,1731377475610,-500.0,0.00023287,2]
[342038160,1731377475620,-500.0,0.00023287,2]
[342038161,1731377475630,-500.0,0.00023287,2]
[342038162,1731377475639,-500.0,0.00023287,2]
[342038163,1731377475649,-545.79,0.00023287,2]
[342038164,1731377475658,-500.0,0.00023287,2]
[342038165,1731377475667,-500.0,0.00023287,2]
[342038166,1731377475677,-200.0,0.00023287,2]
[342038167,1731377475686,-500.0,0.00023287,2]
[342038168,1731377475695,-500.0,0.00023287,2]
[342038169,1731377475704,-276.29030609,0.00023287,2]
[342038170,1731377475713,-500.0,0.00023287,2]
[342038171,1731377475723,-500.0,0.00023287,2]
[342038172,1731377475732,-500.0,0.00023287,2]
[342038173,1731377475742,-500.0,0.00023287,2]
[342038174,1731377475753,-579.93891431,0.00023287,2]
[342038175,1731377475762,-500.0,0.00023287,2]
[342038176,1731377475771,-797.39,0.00023287,2]
[342038177,1731377475780,-502.21664485,0.00023287,2]
[342038178,1731377475789,-500.0,0.00023287,2]
[342038179,1731377475799,-500.0,0.00023287,2]
[342038180,1731377475810,-500.0,0.00023287,2]
[342038181,1731377475820,-500.0,0.00023287,2]
[342038182,1731377475829,-692.56,0.00023287,2]
[342038183,1731377475838,-500.0,0.00023287,2]
[342038184,1731377475848,-500.0,0.00023287,2]
[342038185,1731377475858,-500.0,0.00023287,2]
[342038186,1731377475867,-500.0,0.00023287,2]
[342038187,1731377475876,-500.0,0.00023287,2]
[342038188,1731377475886,-500.0,0.00023287,2]
[342038189,1731377475896,-2336.0,0.00023287,2]
[342038190,1731377475906,-500.0,0.00023287,2]
[342038191,1731377475915,-500.0,0.00023287,2]
[342038192,1731377475925,-500.0,0.00023287,2]
[342038193,1731377475934,-500.0,0.00023287,2]
[342038194,1731377475944,-500.0,0.00023287,2]
[342038195,1731377475954,-500.0,0.00023287,2]
[342038196,1731377475963,-500.0,0.00023287,2]
[342038197,1731377475972,-513.32,0.00023287,2]
[342038198,1731377475982,-502.8475598,0.00023287,2]
[342038199,1731377475992,-500.0,0.00023287,2]
[342038200,1731377476002,-381.7199356,0.00023287,2]
[342038201,1731377476012,-500.0,0.00023287,2]
[342038202,1731377476021,-500.0,0.00023287,2]
[342038203,1731377476031,-500.0,0.00023287,2]
[342038204,1731377476040,-3086.43,0.00023287,2]
[342038205,1731377476050,-500.0,0.00023287,2]
[342038206,1731377476061,-382.41369358,0.00023287,2]
[342038207,1731377476070,-500.0,0.00023287,2]
[342038208,1731377476079,-511.1790426,0.00023287,2]
[342038209,1731377476089,-530.05087743,0.00023287,2]
[342038210,1731377476098,-500.0,0.00023287,2]
[342038211,1731377476107,-871.07,0.00023287,2]
[342038212,1731377476117,-540.06,0.00023287,2]
[342038213,1731377476126,-500.0,0.00023287,2]
[342038214,1731377476135,-500.0,0.00023287,2]
[342038215,1731377476144,-500.0,0.00023287,2]
[342038216,1731377476154,-500.0,0.00023287,2]
[342038217,1731377476163,-500.0,0.00023287,2]
[342038218,1731377476173,-500.0,0.00023287,2]
[342038219,1731377476182,-500.0,0.00023287,2]
[342038220,1731377476192,-317.85516768,0.00023287,2]
[342038221,1731377476201,-500.0,0.00023287,2]
[342038222,1731377476210,-500.0,0.00023287,2]
[342038223,1731377476220,-500.0,0.00023287,2]
[342038224,1731377476230,-1191.39,0.00023287,2]
[342038225,1731377476240,-500.0,0.00023287,2]
[342038226,1731377476249,-1372.71,0.00023287,2]
[342038227,1731377476259,-500.0,0.00023287,2]
[342038228,1731377476268,-500.0,0.00023287,2]
[342038229,1731377476277,-500.0,0.00023287,2]
[342038230,1731377476286,-500.0,0.00023287,2]
[342038231,1731377476383,-500.0,0.00023287,2]
[342038232,1731377476392,-2532.94,0.00023287,2]
[342038233,1731377476402,-500.0,0.00023287,2]
[342038234,1731377476412,-1646.47,0.00023287,2]
[342038235,1731377476420,-677.18,0.00023287,2]
[342038236,1731377476430,-500.0,0.00023287,2]
[342038237,1731377476439,-500.0,0.00023287,2]
[342038238,1731377476449,-500.0,0.00023287,2]
[342038239,1731377476459,-500.0,0.00023287,2]
[342038240,1731377476468,-511.7444057,0.00023287,2]
[342038241,1731377476477,-500.0,0.00023287,2]
[342038242,1731377476486,-500.0,0.00023287,2]
[342038243,1731377476495,-22807.1,0.00023287,2]
[342038244,1731377476504,-500.0,0.00023287,2]
[342038245,1731377476513,-158.01385466,0.00023287,2]
[342038246,1731377476523,-2015.16,0.00023287,2]
[342038247,1731377476532,-500.0,0.00023287,2]
[342038248,1731377476542,-500.0,0.00023287,2]
[342038249,1731377476551,-509.67953788,0.00023287,2]
[342038250,1731377476563,-313.13144397,0.00023287,2]
[342038251,1731377476575,-753.19,0.00023287,2]
[342038252,1731377476584,-500.0,0.00023287,2]
[342038253,1731377476593,-2052.66,0.00023287,2]
[342038254,1731377476602,-957.2,0.00023287,2]
[342038255,1731377476611,-500.0,0.00023287,2]
[342038256,1731377476620,-500.0,0.00023287,2]
[342038257,1731377476630,-500.0,0.00023287,2]
[342038258,1731377476639,-500.0,0.00023287,2]
[342038259,1731377476649,-500.0,0.00023287,2]
[342038260,1731377476659,-500.0,0.00023287,2]
[342038261,1731377476668,-295.19562065,0.00023287,2]
[342038262,1731377476677,-759.89,0.00023287,2]
[342038263,1731377476687,-500.0,0.00023287,2]
[342038264,1731377476697,-500.0,0.00023287,2]
[342038265,1731377476706,-545.76,0.00023287,2]
[342038266,1731377476715,-852.66,0.00023287,2]
[342038267,1731377476724,-8115.34,0.00023287,2]
[342038268,1731377476733,-1121.37,0.00023287,2]
[342038269,1731377476743,-500.0,0.00023287,2]
[342038270,1731377476752,-1455.72,0.00023287,2]
[342038271,1731377476761,-500.0,0.00023287,2]
[342038272,1731377476770,-1210.02,0.00023287,2]
[342038273,1731377476779,-510.80863312,0.00023287,2]
[342038274,1731377476788,-500.0,0.00023287,2]
[342038275,1731377476797,-503.12537179,0.00023287,2]
[342038276,1731377476808,-1402.44,0.00023287,2]
[342038277,1731377476817,-4023.56,0.00023287,2]
[342038278,1731377476826,-500.0,0.00023287,2]
[342038279,1731377476836,-500.0,0.00023287,2]
[342038280,1731377476845,-500.0,0.00023287,2]
[342038281,1731377476855,-500.0,0.00023287,2]
[342038282,1731377476865,-283.13259939,0.00023287,2]
[342038283,1731377476875,-1547.39,0.00023287,2]
[342038284,1731377476885,-651.69,0.00023287,2]
[342038285,1731377476895,-500.0,0.00023287,2]
[342038286,1731377476904,-500.0,0.00023287,2]
[342038287,1731377476913,-655.08,0.00023287,2]
[342038288,1731377476923,-500.0,0.00023287,2]
[342038289,1731377476933,-500.0,0.00023287,2]
[342038290,1731377476942,-500.0,0.00023287,2]
[342038291,1731377476952,-500.0,0.00023287,2]
[342038292,1731377476963,-500.0,0.00023287,2]
[342038293,1731377476972,-886.59,0.00023287,2]
[342038294,1731377476982,-500.0,0.00023287,2]
[342038295,1731377476992,-500.0,0.00023287,2]
[342038296,1731377477002,-500.0,0.00023287,2]
[342038297,1731377477011,-500.0,0.00023287,2]
[342038298,1731377477021,-500.0,0.00023287,2]
[342038299,1731377477031,-500.0,0.00023287,2]
[342038300,1731377477041,-500.0,0.00023287,2]
[342038301,1731377477050,-4327.77,0.00023287,2]
[342038302,1731377477061,-1028.27,0.00023287,2]
[342038303,1731377477070,-500.0,0.00023287,2]
[342038304,1731377477081,-15293.97,0.00023287,2]
[342038305,1731377477091,-500.0,0.00023287,2]
[342038306,1731377477100,-502.50282168,0.00023287,2]
[342038307,1731377477110,-266.68190302,0.00023287,2]
[342038308,1731377477119,-500.0,0.00023287,2]
[342038309,1731377477129,-278.39863832,0.00023287,2]
[342038310,1731377477139,-335.6252105,0.00023287,2]
[342038311,1731377477148,-500.0,0.00023287,2]
[342038312,1731377477157,-10812.06,0.00023287,2]
[342038313,1731377477167,-500.0,0.00023287,2]
[342038314,1731377477177,-500.0,0.00023287,2]
[342038315,1731377477186,-500.0,0.00023287,2]
[342038316,1731377477195,-508.57305941,0.00023287,2]
[342038317,1731377477205,-500.0,0.00023287,2]
[342038318,1731377477214,-500.0,0.00023287,2]
[342038319,1731377477224,-500.0,0.00023287,2]
[342038320,1731377477232,-909.56,0.00023287,2]
[342038321,1731377477242,-500.0,0.00023287,2]
[342038322,1731377477251,-2453.18,0.00023287,2]
[342038323,1731377477261,-616.45,0.00023287,2]
[342038324,1731377477271,-500.0,0.00023287,2]
[342038325,1731377477280,-500.0,0.00023287,2]
[342038326,1731377477290,-5895.01,0.00023287,2]
[342038327,1731377477300,-505.57,0.00023287,2]
[342038328,1731377477310,-7159.21,0.00023287,2]
[342038329,1731377477320,-500.0,0.00023287,2]
[342038330,1731377477330,-1860.51,0.00023287,2]
[342038331,1731377477339,-500.0,0.00023287,2]
[342038332,1731377477348,-500.0,0.00023287,2]
[342038333,1731377477358,-698.56,0.00023287,2]
[342038334,1731377477371,-500.0,0.00023287,2]
[342038335,1731377477381,-505.06812904,0.00023287,2]
[342038336,1731377477391,-742.56,0.00023287,2]
[342038337,1731377477400,-434.60654883,0.00023287,2]
[342038338,1731377477411,-500.0,0.00023287,2]
[342038339,1731377477421,-500.0,0.00023287,2]
[342038340,1731377477430,-500.0,0.00023287,2]
[342038341,1731377477441,-568.68557058,0.00023287,2]
[342038342,1731377477450,-540.6,0.00023287,2]
[342038343,1731377477460,-500.0,0.00023287,2]
[342038344,1731377477470,-500.0,0.00023287,2]
[342038345,1731377477479,-368.54291511,0.00023287,2]
[342038346,1731377477488,-1171.19,0.00023287,2]
[342038347,1731377477499,-500.0,0.00023287,2]
[342038348,1731377477508,-1721.31,0.00023287,2]
[342038349,1731377477518,-500.0,0.00023287,2]
[342038350,1731377477527,-500.0,0.00023287,2]
[342038351,1731377477537,-500.0,0.00023287,2]
[342038352,1731377477546,-500.0,0.00023287,2]
[342038353,1731377477556,-1319.56,0.00023287,2]
[342038354,1731377477565,-500.0,0.00023287,2]
[342038355,1731377477574,-629.72,0.00023287,2]
[342038356,1731377477583,-160.0,0.0002331,19]
[342038357,1731377477593,-1000.0,0.00023342,2]
[342038358,1731377477602,-912.2622093,0.00023342,2]
[342038359,1731377477612,-1000.0,0.00023342,2]
[342038360,1731377477621,-1000.0,0.00023342,2]
[342038361,1731377477630,-1000.0,0.00023342,2]
[342038362,1731377477639,-500.74167225,0.00023342,2]
[342038363,1731377477649,-1000.0,0.00023342,2]
[342038364,1731377477658,-1000.0,0.00023342,2]
[342038365,1731377477668,-1000.0,0.00023342,2]
[342038366,1731377477677,-1000.0,0.00023342,2]
[342038367,1731377477687,-1000.0,0.00023342,2]
[342038368,1731377477696,-1000.0,0.00023342,2]
[342038369,1731377477706,-501.40739327,0.00023342,2]
[342038370,1731377477715,-545.16738534,0.00023342,2]
[342038371,1731377477725,-1000.0,0.00023342,2]
[342038372,1731377477735,-1000.0,0.00023342,2]
[342038373,1731377477744,-1000.0,0.00023342,2]
[342038374,1731377477754,-500.62431236,0.00023342,2]
[342038375,1731377477763,-508.05307532,0.00023342,2]
[342038376,1731377477772,-160.0,0.00023405,20]
[342038377,1731377477865,-7805.0,0.00023413,4]
[342038378,1731377477874,-166.666666,0.00023456,2]
[342038379,1731377477884,-160.0,0.000235,21]
[342038380,1731377477893,-246.97645534,0.000235,5]
[342038381,1731377477902,-1000.0,0.00023542,2]
[342038382,1731377477911,-500.0,0.00023561,2]
[342038383,1731377477920,-500.0,0.00023561,2]
[342038384,1731377477929,-500.0,0.00023561,2]
[342038385,1731377477939,-500.0,0.00023561,2]
[342038386,1731377477947,-500.0,0.00023561,2]
[342038387,1731377477956,-291.96801608,0.00023561,2]
[342038388,1731377477966,-666.67,0.00023561,2]
[342038389,1731377477975,-351.97872525,0.00023561,2]
[342038390,1731377477984,-500.0,0.00023561,2]
[342038391,1731377477993,-271.02149687,0.00023561,2]
[342038392,1731377478002,-500.0,0.00023561,2]
[342038393,1731377478011,-500.0,0.00023561,2]
[342038394,1731377478020,-500.0,0.00023561,2]
[342038395,1731377478030,-500.0,0.00023561,2]
[342038396,1731377478039,-314.51910197,0.00023561,2]
[342038397,1731377478048,-173.53484878,0.00023561,2]
[342038398,1731377478058,-508.46324247,0.00023561,2]
[342038399,1731377478067,-555.24,0.00023561,2]
[342038400,1731377478077,-500.0,0.00023561,2]
[342038401,1731377478086,-533.04152695,0.00023561,2]
[342038402,1731377478095,-539.45160176,0.00023561,2]
[342038403,1731377478104,-500.0,0.00023561,2]
[342038404,1731377478114,-504.71414334,0.00023561,2]
[342038405,1731377478123,-500.0,0.00023561,2]
[342038406,1731377478132,-500.0,0.00023561,2]
[342038407,1731377478141,-608.85,0.00023561,2]
[342038408,1731377478151,-618.46,0.00023561,2]
[342038409,1731377478160,-500.0,0.00023561,2]
[342038410,1731377478169,-1002.33,0.00023561,2]
[342038411,1731377478178,-500.0,0.00023561,2]
[342038412,1731377478187,-708.62,0.00023561,2]
[342038413,1731377478196,-500.0,0.00023561,2]
[342038414,1731377478206,-500.0,0.00023561,2]
[342038415,1731377478216,-500.0,0.00023561,2]
[342038416,1731377478226,-500.0,0.00023561,2]
[342038417,1731377478237,-500.0,0.00023561,2]
[342038418,1731377478247,-500.0,0.00023561,2]
[342038419,1731377478256,-500.0,0.00023561,2]
[342038420,1731377478266,-500.0,0.00023561,2]
[342038421,1731377478275,-753.43,0.00023561,2]
[342038422,1731377478284,-500.0,0.00023561,2]
[342038423,1731377478293,-500.0,0.00023561,2]
[342038424,1731377478302,-500.0,0.00023561,2]
[342038425,1731377478313,-511.64566405,0.00023561,2]
[342038426,1731377478323,-545.79,0.00023561,2]
[342038427,1731377478332,-500.0,0.00023561,2]
[342038428,1731377478341,-500.0,0.00023561,2]
[342038429,1731377478350,-200.0,0.00023561,2]
[342038430,1731377478360,-500.0,0.00023561,2]
[342038431,1731377478372,-310.14516488,0.00023561,2]
[342038432,1731377478381,-500.0,0.00023561,2]
[342038433,1731377478390,-500.0,0.00023561,2]
[342038434,1731377478399,-500.0,0.00023561,2]
[342038435,1731377478409,-468.4367218,0.00023561,2]
[342038436,1731377478418,-500.0,0.00023561,2]
[342038437,1731377478427,-797.39,0.00023561,2]
[342038438,1731377478437,-516.92069076,0.00023561,2]
[342038439,1731377478447,-178.47498037,0.00023561,2]
[342038440,1731377478456,-500.0,0.00023561,2]
[342038441,1731377478466,-508.63541294,0.00023561,2]
[342038442,1731377478475,-692.56,0.00023561,2]
[342038443,1731377478491,-500.0,0.00023561,2]
[342038444,1731377478509,-500.0,0.00023561,2]
[342038445,1731377478525,-500.0,0.00023561,2]
[342038446,1731377478545,-510.20463938,0.00023561,2]
[342038447,1731377478566,-388.42400278,0.00023561,2]
[342038448,1731377478583,-500.0,0.00023561,2]
[342038449,1731377478601,-2336.0,0.00023561,2]
[342038450,1731377478615,-500.0,0.00023561,2]
[342038451,1731377478631,-520.60967725,0.00023561,2]
[342038452,1731377478649,-500.0,0.00023561,2]
[342038453,1731377478669,-500.0,0.00023561,2]
[342038454,1731377478681,-509.72095818,0.00023561,2]
[342038455,1731377478699,-500.0,0.00023561,2]
[342038456,1731377478713,-500.0,0.00023561,2]
[342038457,1731377478728,-513.32,0.00023561,2]
[342038458,1731377478742,-500.0,0.00023561,2]
[342038459,1731377478756,-500.0,0.00023561,2]
[342038460,1731377478772,-500.0,0.00023561,2]
[342038461,1731377478785,-500.0,0.00023561,2]
[342038462,1731377478801,-3086.43,0.00023561,2]
[342038463,1731377478817,-500.0,0.00023561,2]
[342038464,1731377478832,-500.0,0.00023561,2]
[342038465,1731377478848,-500.0,0.00023561,2]
[342038466,1731377478863,-871.07,0.00023561,2]
[342038467,1731377478877,-540.06,0.00023561,2]
[342038468,1731377478892,-327.21431306,0.00023561,2]
[342038469,1731377478907,-500.0,0.00023561,2]
[342038470,1731377478921,-500.0,0.00023561,2]
[342038471,1731377478936,-500.0,0.00023561,2]
[342038472,1731377478951,-500.0,0.00023561,2]
[342038473,1731377478965,-500.0,0.00023561,2]
[342038474,1731377478980,-500.0,0.00023561,2]
[342038475,1731377478995,-500.0,0.00023561,2]
[342038476,1731377479009,-500.0,0.00023561,2]
[342038477,1731377479024,-438.73684864,0.00023561,2]
[342038478,1731377479039,-1191.39,0.00023561,2]
[342038479,1731377479053,-500.0,0.00023561,2]
[342038480,1731377479069,-1372.71,0.00023561,2]
[342038481,1731377479082,-500.0,0.00023561,2]
[342038482,1731377479097,-500.0,0.00023561,2]
[342038483,1731377479112,-500.0,0.00023561,2]
[342038484,1731377479126,-500.0,0.00023561,2]
[342038485,1731377479140,-508.44869711,0.00023561,2]
[342038486,1731377479155,-2532.94,0.00023561,2]
[342038487,1731377479169,-500.0,0.00023561,2]
[342038488,1731377479183,-1646.47,0.00023561,2]
[342038489,1731377479198,-677.18,0.00023561,2]
[342038490,1731377479212,-500.0,0.00023561,2]
[342038491,1731377479226,-500.0,0.00023561,2]
[342038492,1731377479240,-500.0,0.00023561,2]
[342038493,1731377479255,-500.0,0.00023561,2]
[342038494,1731377479268,-500.0,0.00023561,2]
[342038495,1731377479282,-500.0,0.00023561,2]
[342038496,1731377479296,-22807.1,0.00023561,2]
[342038497,1731377479311,-500.0,0.00023561,2]
[342038498,1731377479325,-2015.16,0.00023561,2]
[342038499,1731377479339,-500.0,0.00023561,2]
[342038500,1731377479355,-500.0,0.00023561,2]
[342038501,1731377479372,-753.19,0.00023561,2]
[342038502,1731377479388,-500.0,0.00023561,2]
[342038503,1731377479403,-2052.66,0.00023561,2]
[342038504,1731377479417,-957.2,0.00023561,2]
[342038505,1731377479432,-500.0,0.00023561,2]
[342038506,1731377479447,-625.42045839,0.00023561,2]